Cogmind - Beta 12 X1 @@@ ROGUE MODE // 2022.08.01 @ 14:03:36 Player: btmk16 Result: Destroyed by Y-72 Warden with Railgun Performance ------------- Evolutions (7) 3500 Regions Visited (10) 2000 Robots Destroyed (0) 0 Value Destroyed (10) 10 Prototype IDs (8) 160 Alien Tech Used (0) 0 Bonus (4585) 4585 TOTAL SCORE: 10255 Bonus ------- Pacifist 4085 Entered DSFs 500 Cogmind --------- Core Integrity 0/1300 Matter 94/300 Energy 98/100 System Corruption 15% Temperature Cool (0) Movement Core (50) Location -3/Research Parts ------- > --- POWER (1) -------- (None) > --- PROPULSION (5) --- (None) > --- UTILITY (13) ----- Enhanced Optical Array > --- WEAPON (2) ------- (None) > --- INVENTORY (5) ---- Particle Reactor Advanced Field Recycling Unit (48) Precision Grenade Launcher Axe Peak State ------------ > --- POWER ------------ Light Fission Core > --- PROPULSION ------- Improved Cesium-ion Thruster Improved Cesium-ion Thruster Cooled Cesium-ion Thruster Impulse Thruster > --- UTILITY ---------- Compact Matter Pod Compact Matter Pod Weight Redist. System Advanced Weight Redist. System Triangulator Enhanced Optical Array Improved Signal Interpreter Transmission Jammer Improved Light Armor Plating Improved Shield Generator Force Field High-powered Tractor Beam > --- WEAPON ----------- Greatsword > --- INVENTORY -------- Armored Wheel Field Propulsion Drive System Restoration Module Precision Grenade Launcher Axe [Rating: 80] Favorites ----------- Power Light Fission Core Engine Light Ion Engine Power Core Light Fission Core Reactor Particle Reactor Propulsion Improved Cesium-ion Thruster Treads Advanced Medium Treads Leg Aluminum Leg Wheel Compact Wheel Hover Unit Aerolev Unit Flight Unit Improved Cesium-ion Thruster Utility Weight Redist. System Device Weight Redist. System Storage Compact Matter Pod Processor Improved Signal Interpreter Hackware System Shield Protection Improved Light Armor Plating Weapon Greatsword Energy Gun EM Pulse Gun Ballistic Gun Light Assault Rifle Launcher Rocket Launcher Special Weapon Plasma Cutter Impact Weapon Heavy Mace Slashing Weapon Greatsword Build | -11 -10 -10 -9 -8 -7 -6 -5 -5 -4 -3 ------- Run | Scr Mat Min Mat Mat Fac Fac Fac DSF Fac Res Slots Evolved 14 | . . . 2 2 2 2 2 . 2 2 Power . | . . . . . . . . . . . Propulsion 3 | . . . 1 . . . 1 . . 1 Utility 11 | . . . 1 2 2 2 1 . 2 1 Weapon . | . . . . . . . . . . . Parts Attached 58 | 2 3 3 2 6 13 10 3 . 6 10 Power 4 | . . . . . 1 2 . . . 1 Engine 1 | . . . . . 1 . . . . . Core 2 | . . . . . . 2 . . . . Reactor 1 | . . . . . . . . . . 1 Propulsion 22 | 2 2 . 1 2 6 . 3 . 1 5 Treads 3 | . . . . . 2 . . . . 1 Leg . | . . . . . . . . . . . Wheel 3 | 2 . . . . . . . . . 1 Hover 3 | . . . 1 . 1 . 1 . . . Flight 13 | . 2 . . 2 3 . 2 . 1 3 Utility 25 | . 1 2 . 3 3 7 . . 5 4 Device 15 | . 1 1 . 2 1 4 . . 3 3 Storage 3 | . . 1 . . . . . . 2 . Processor 4 | . . . . 1 1 2 . . . . Hackware 2 | . . . . . 1 . . . . 1 Protection 1 | . . . . . . 1 . . . . Artifact . | . . . . . . . . . . . Weapon 7 | . . 1 1 1 3 1 . . . . Energy Gun . | . . . . . . . . . . . Energy Cannon . | . . . . . . . . . . . Ballistic Gun 1 | . . . . 1 . . . . . . Ballistic Cannon . | . . . . . . . . . . . Launcher 2 | . . 1 . . 1 . . . . . Special Weapon 1 | . . . 1 . . . . . . . Impact Weapon 1 | . . . . . 1 . . . . . Slashing Weapon 2 | . . . . . 1 1 . . . . Piercing Weapon . | . . . . . . . . . . . Special Melee Weapon . | . . . . . . . . . . . Unidentified Prototypes 8 | . . . . 1 4 . 1 . . 2 Parts Lost 40 | . 3 1 4 4 6 1 . . 2 19 Power 2 | . 1 . . . . . . . 1 . Propulsion 14 | . . . 1 2 3 . . . . 8 Utility 18 | . 1 1 . 2 2 1 . . 1 10 Weapon 6 | . 1 . 3 . 1 . . . . 1 Highest Loss Streak 12 | . 3 1 3 2 5 1 . . 2 12 To Critical Strikes 1 | . . . 1 . . . . . . . Average Slot Usage (%) 55 | . 89 66 44 36 42 66 82 82 77 44 Core 1 | . . . . . . 4 5 5 5 . Wheel 1 | . 24 . . . . . . . . . Hover 1 | . . . 1 3 4 . 1 . . . Flight 14 | . 4 28 17 12 6 20 21 23 21 9 Device 15 | . 12 1 11 13 14 18 29 29 29 11 Storage 2 | . 12 11 . . . . . . . 4 Processor 6 | . . . . 1 4 13 11 11 10 8 Hackware 1 | . . . . . 2 . . . . 2 Protection 1 | . . . . . . 2 5 5 5 1 Ballistic Gun 3 | . 14 14 6 5 1 . . . . . Launcher 1 | . . 10 5 . . . . . . . Impact Weapon 1 | . . . . . 5 . . . . . Slashing Weapon 1 | . . . . . . 6 5 5 5 1 Naked Turns . | . . . . . . . . . . . Heaviest Build 31 | 11 12 6 6 5 9 27 27 27 31 29 Greatest Support 37 | 26 26 8 8 9 18 27 34 37 34 25 Greatest Overweight (x) 2 | . . . . . 1 . 1 . . 2 Average Overweight (x) . | . . . . . . . . . . . Largest Inventory Capacity 8 | 8 8 5 5 5 5 5 5 5 5 5 Average Capacity 5 | 8 7 5 5 5 5 5 5 5 5 5 Most Carried 8 | 6 8 5 5 5 5 5 5 5 5 5 Average Carried 4 | 6 6 5 4 5 4 4 4 5 4 4 Final Capacity 8 | 8 5 5 5 5 5 5 5 5 5 5 Final Carried 6 | 6 5 5 5 5 5 5 5 5 5 4 Class Distribution -------------------- 62% | Mutant 23% | Sprinter 9% | Infiltrator-Mutant 5% | Infiltrator-Sprinter Dominant Class ---------------- Mutant | -10/Materials Mutant | -10/Mines Mutant | -9/Materials Mutant | -8/Materials Mutant | -7/Factory Sprinter | -6/Factory Sprinter | -5/Factory Sprinter | -5/DSF Infiltrator-Sprinter | -4/Factory Mutant | -3/Research Resources | -11 -10 -10 -9 -8 -7 -6 -5 -5 -4 -3 ----------- Run | Scr Mat Min Mat Mat Fac Fac Fac DSF Fac Res Matter Collected 338 | 172 . 78 . . . . . 88 . . Remotely . | . . . . . . . . . . . Salvage Created 88 | . . . . . . . . 88 . . Parts . | . . . . . . . . . . . Haulers Intercepted . | . . . . . . . . . . . Recyclers Shooed . | . . . . . . . . . . . Parts Field Recycled 3 | . . . . . . . . . . 3 Retrieved Matter 72 | . . . . . . . . . . 72 Parts Self-Destructed . | . . . . . . . . . . . Prevented . | . . . . . . . . . . . Kills | -11 -10 -10 -9 -8 -7 -6 -5 -5 -4 -3 ------- Run | Scr Mat Min Mat Mat Fac Fac Fac DSF Fac Res Combat Hostiles Destroyed . | . . . . . . . . . . . Classes Destroyed . | . . . . . . . . . . . Best Kill Streak . | . . . . . . . . . . . Combat Bots Only . | . . . . . . . . . . . Max Kills in Single Turn . | . . . . . . . . . . . Gunslinging . | . . . . . . . . . . . Exploded . | . . . . . . . . . . . Melee . | . . . . . . . . . . . Uniques/NPCs Destroyed . | . . . . . . . . . . . Combat | -11 -10 -10 -9 -8 -7 -6 -5 -5 -4 -3 -------- Run | Scr Mat Min Mat Mat Fac Fac Fac DSF Fac Res Damage Taken 4871 | . 319 87 205 315 1074 122 . 90 430 2229 Core 2378 | . 111 . 78 200 535 29 . 17 82 1326 Absorbed by Shields 77 | . . . . . . 20 . . 57 . Core Remaining (%) 75 | 100 . 55 80 63 23 96 . 98 92 . Volleys Fired . | . . . . . . . . . . . Largest . | . . . . . . . . . . . Hottest . | . . . . . . . . . . . Shots Fired . | . . . . . . . . . . . Gun . | . . . . . . . . . . . Cannon . | . . . . . . . . . . . Launcher . | . . . . . . . . . . . Special . | . . . . . . . . . . . Kinetic . | . . . . . . . . . . . Thermal . | . . . . . . . . . . . Explosive . | . . . . . . . . . . . Electromagnetic . | . . . . . . . . . . . Robot Hit Streak . | . . . . . . . . . . . Robot Miss Streak . | . . . . . . . . . . . Penetration Max . | . . . . . . . . . . . Secondary Targets . | . . . . . . . . . . . Shots Hit Robots . | . . . . . . . . . . . Core Hits 2 | . . . . . . 1 . . . 1 Critical Kills . | . . . . . . . . . . . Critical Parts Destroyed . | . . . . . . . . . . . Critical Strikes . | . . . . . . . . . . . Melee Attacks 7 | . . . . . . 2 . 4 1 . Impact . | . . . . . . . . . . . Slashing 7 | . . . . . . 2 . 4 1 . Piercing . | . . . . . . . . . . . Sneak Attacks . | . . . . . . . . . . . Combat Hostiles . | . . . . . . . . . . . Follow-up Attacks . | . . . . . . . . . . . Damage Inflicted 17 | . . . . . . 6 . . . 11 Guns . | . . . . . . . . . . . Cannons . | . . . . . . . . . . . Explosions . | . . . . . . . . . . . Melee . | . . . . . . . . . . . Ramming 17 | . . . . . . 6 . . . 11 Kinetic . | . . . . . . . . . . . Thermal . | . . . . . . . . . . . Explosive . | . . . . . . . . . . . Electromagnetic . | . . . . . . . . . . . Impact . | . . . . . . . . . . . Slashing . | . . . . . . . . . . . Piercing . | . . . . . . . . . . . Highest Corruption 15 | . . . . . . . . . 1 15 Average Corruption 6 | . . . . . . . . . 1 6 Corruption Purged 1 | . . . . . . . . . . 1 Corruption Blocked . | . . . . . . . . . . . Effects 8 | . . . . . . . . . . 8 Message Errors 1 | . . . . . . . . . . 1 Matter Fused 1 | . . . . . . . . . . 1 Heat Flow Errors 1 | . . . . . . . . . . 1 Parts Rejected 2 | . . . . . . . . . . 2 Data Loss (minor) 1 | . . . . . . . . . . 1 Data Loss (major) 1 | . . . . . . . . . . 1 Misdirections 1 | . . . . . . . . . . 1 Overload Shots . | . . . . . . . . . . . Overflow Damage . | . . . . . . . . . . . Projectiles . | . . . . . . . . . . . Explosions . | . . . . . . . . . . . Melee . | . . . . . . . . . . . Knockbacks . | . . . . . . . . . . . Impact . | . . . . . . . . . . . Kinetic . | . . . . . . . . . . . Secondary . | . . . . . . . . . . . Self-Inflicted Damage 7 | . . . . . . 3 . . . 4 Shots . | . . . . . . . . . . . Rammed 6 | . . . . . . 2 . . . 4 Targets Rammed 6 | . . . . . . 2 . . . 4 Kicked . | . . . . . . . . . . . Crushed . | . . . . . . . . . . . Highest Temperature 82 | . . . . . . 3 . . . 82 Average Temperature 34 | . . . . . . 3 . . . 44 Received Heat Transfer 213 | . 12 . 39 36 27 18 . . 48 33 Siege Activations . | . . . . . . . . . . . Robots Corrupted . | . . . . . . . . . . . Combat Hostiles . | . . . . . . . . . . . Parts Fried . | . . . . . . . . . . . Impact Corruptions . | . . . . . . . . . . . Robots Melted . | . . . . . . . . . . . Combat Hostiles . | . . . . . . . . . . . Parts Melted . | . . . . . . . . . . . Heat Transferred . | . . . . . . . . . . . Parts Sabotaged . | . . . . . . . . . . . Parts Stolen . | . . . . . . . . . . . Parts Stripped . | . . . . . . . . . . . Power Chain Reactions . | . . . . . . . . . . . Missiles Intercepted . | . . . . . . . . . . . Alert | -11 -10 -10 -9 -8 -7 -6 -5 -5 -4 -3 ------- Run | Scr Mat Min Mat Mat Fac Fac Fac DSF Fac Res Peak Influence 376 | . 20 50 217 191 376 281 137 114 198 287 Initial 184 | . . 5 15 91 86 184 137 99 59 106 Average 137 | . 6 10 100 133 174 212 137 114 124 168 Maximum Alert Level 1 | . . . 1 . 1 1 . . . 1 Low Security (%) 76 | 100 100 100 93 100 69 27 100 100 100 62 Level 1 23 | . . . 6 . 30 72 . . . 37 Level 2 . | . . . . . . . . . . . Level 3 . | . . . . . . . . . . . Level 4 . | . . . . . . . . . . . Level 5 . | . . . . . . . . . . . High Security . | . . . . . . . . . . . Max Security . | . . . . . . . . . . . Squads Dispatched 9 | . 1 . 1 . 2 1 . 1 2 1 Investigation 2 | . . . . . 1 1 . . . . Extermination 1 | . . . . . . . . . . 1 Reinforcement 6 | . 1 . 1 . 1 . . 1 2 . Assault . | . . . . . . . . . . . Garrison . | . . . . . . . . . . . Intercept . | . . . . . . . . . . . Searches Triggered . | . . . . . . . . . . . Construction Impeded . | . . . . . . . . . . . Haulers Reinforced . | . . . . . . . . . . . Active Scanning Responses . | . . . . . . . . . . . Cargo Convoy Interrupts . | . . . . . . . . . . . Stealth | -11 -10 -10 -9 -8 -7 -6 -5 -5 -4 -3 --------- Run | Scr Mat Min Mat Mat Fac Fac Fac DSF Fac Res Distress Signals 3 | . . . . . . . . . 1 2 Communications Jammed . | . . . . . . . . . . . Distress Signals . | . . . . . . . . . . . Times Spotted 120 | . 12 6 17 11 23 4 . 5 14 28 Peak Tracking Total 17 | . 10 3 8 8 10 2 . 5 9 17 Tactical Retreats 20 | . . 1 3 2 7 . . . 2 5 Traps | -11 -10 -10 -9 -8 -7 -6 -5 -5 -4 -3 ------- Run | Scr Mat Min Mat Mat Fac Fac Fac DSF Fac Res Traps Triggered 3 | . . . . . . 1 . . 1 1 Indirectly . | . . . . . . . . . . . Trap Hack Attempts . | . . . . . . . . . . . Triggered . | . . . . . . . . . . . Disarmed . | . . . . . . . . . . . Reprogrammed . | . . . . . . . . . . . Reused . | . . . . . . . . . . . Traps Extracted . | . . . . . . . . . . . Installed . | . . . . . . . . . . . Triggered . | . . . . . . . . . . . Machines | -11 -10 -10 -9 -8 -7 -6 -5 -5 -4 -3 ---------- Run | Scr Mat Min Mat Mat Fac Fac Fac DSF Fac Res Machines Disabled 1 | . . . . . . . . 1 . . Max in Single Turn 1 | . . . . . . . . 1 . . Garrison Access 2 | . . . . 1 1 . . . . . Machines Sabotaged . | . . . . . . . . . . . Garrisons Compromised . | . . . . . . . . . . . Overloaded Fab Kills . | . . . . . . . . . . . Hacking | -11 -10 -10 -9 -8 -7 -6 -5 -5 -4 -3 --------- Run | Scr Mat Min Mat Mat Fac Fac Fac DSF Fac Res Machines Accessed 25 | . . . 5 4 3 3 1 . 6 3 Terminals 16 | . . . 4 2 . 2 1 . 4 3 Fabricators 1 | . . . . . . . . . 1 . Repair Stations . | . . . . . . . . . . . Recycling Units 6 | . . . 1 1 2 1 . . 1 . Scanalyzers . | . . . . . . . . . . . Garrison Access 2 | . . . . 1 1 . . . . . Total Hacks 55 | . . . 9 13 9 5 1 . 8 10 Successful 26 | . . . 6 9 3 1 1 . 1 5 Failed 29 | . . . 3 4 6 4 . . 7 5 Catastrophic 9 | . . . . . 1 3 . . 2 3 Database Lockouts . | . . . . . . . . . . . Manual 16 | . . . 5 4 . 2 . . 1 4 Terminals 34 | . . . 8 8 . 3 1 . 4 10 Fabricators 2 | . . . . . . . . . 2 . Repair Stations . | . . . . . . . . . . . Recycling Units 16 | . . . 1 4 7 2 . . 2 . Scanalyzers . | . . . . . . . . . . . Garrison Access 3 | . . . . 1 2 . . . . . Terminal Hacks 10 | . . . 3 2 . . 1 . 1 3 Open DSF 1 | . . . . . . . 1 . . . Level Access Points 1 | . . . . . . . . . 1 . Emergency Access Points 3 | . . . 1 . . . . . . 2 Locate Traps 2 | . . . 1 . . . . . . 1 Zone Layout 3 | . . . 1 2 . . . . . . Fabricator Hacks . | . . . . . . . . . . . Repair Station Hacks . | . . . . . . . . . . . Recycling Unit Hacks 8 | . . . 1 4 2 1 . . . . Retrieve Matter 5 | . . . . 2 2 1 . . . . Retrieve Components 3 | . . . 1 2 . . . . . . Scanalyzer . | . . . . . . . . . . . Garrison Access Hacks 2 | . . . . 1 1 . . . . . Seal Access 2 | . . . . 1 1 . . . . . Unauthorized Hacks 6 | . . . 2 2 . . . . . 2 Terminals 6 | . . . 2 2 . . . . . 2 Assimilate 2 | . . . 1 1 . . . . . . Botnet 4 | . . . 1 1 . . . . . 2 Fabricators . | . . . . . . . . . . . Repair Stations . | . . . . . . . . . . . Recycling Units . | . . . . . . . . . . . Scanalyzers . | . . . . . . . . . . . Garrison Access . | . . . . . . . . . . . Data Cores Recovered . | . . . . . . . . . . . Used . | . . . . . . . . . . . Hacking Detections 19 | . . . 3 1 3 3 . . 6 3 Full Trace Events 2 | . . . . . 1 1 . . . . Feedback Events . | . . . . . . . . . . . Feedback Blocked . | . . . . . . . . . . . Robot Schematics Acquired . | . . . . . . . . . . . Robots Built . | . . . . . . . . . . . Authchips . | . . . . . . . . . . . Time . | . . . . . . . . . . . Total Robot Build Rating . | . . . . . . . . . . . Part Schematics Acquired . | . . . . . . . . . . . Parts Built . | . . . . . . . . . . . Authchips . | . . . . . . . . . . . Time . | . . . . . . . . . . . Total Part Build Rating . | . . . . . . . . . . . Parts Repaired . | . . . . . . . . . . . Time . | . . . . . . . . . . . Parts Recycled . | . . . . . . . . . . . Recycled Matter . | . . . . . . . . . . . Retrieved Matter . | . . . . . . . . . . . Retrieved Components 3 | . . . 3 . . . . . . . Parts Scanalyzed . | . . . . . . . . . . . Part Schematics Acquired . | . . . . . . . . . . . Parts Damaged . | . . . . . . . . . . . Bothacking | -11 -10 -10 -9 -8 -7 -6 -5 -5 -4 -3 ------------ Run | Scr Mat Min Mat Mat Fac Fac Fac DSF Fac Res Used RIF Installer . | . . . . . . . . . . . Robots Hacked . | . . . . . . . . . . . Non-combat . | . . . . . . . . . . . Combat . | . . . . . . . . . . . Robot Hacks Applied . | . . . . . . . . . . . Relay Couplers Released 1 | . . . . 1 . . . . . . Machine Destruction 1 | . . . . 1 . . . . . . Fabnet Peak Effective % . | . . . . . . . . . . . Robots Rewired . | . . . . . . . . . . . Allies Hacked . | . . . . . . . . . . . Hacks Repelled . | . . . . . . . . . . . Allies | -11 -10 -10 -9 -8 -7 -6 -5 -5 -4 -3 -------- Run | Scr Mat Min Mat Mat Fac Fac Fac DSF Fac Res Total Allies 2 | . . . 1 1 . . . . . . Largest Group 1 | . . . 1 1 1 . . . . . Highest-Rated Group 10 | . . . 10 10 10 . . . . . Highest-Rated Ally 10 | . . . 10 10 10 . . . . . Total Orders . | . . . . . . . . . . . Ally Attacks . | . . . . . . . . . . . Total Damage . | . . . . . . . . . . . Kills . | . . . . . . . . . . . Allies Corrupted . | . . . . . . . . . . . Allies Melted . | . . . . . . . . . . . Intel | -11 -10 -10 -9 -8 -7 -6 -5 -5 -4 -3 ------- Run | Scr Mat Min Mat Mat Fac Fac Fac DSF Fac Res Robot Analysis Total . | . . . . . . . . . . . Derelict Logs Recovered 1 | . . 1 . . . . . . . . Drone Launches . | . . . . . . . . . . . Drone Recoveries . | . . . . . . . . . . . Exploration | -11 -10 -10 -9 -8 -7 -6 -5 -5 -4 -3 ------------- Run | Scr Mat Min Mat Mat Fac Fac Fac DSF Fac Res Turns Passed 1470 | 3 70 132 118 139 319 192 32 30 163 272 Spaces Moved 3294 | 1 81 343 297 285 769 486 83 65 454 430 Core 407 | . . . . . 188 . . . . 219 Treads . | . . . . . . . . . . . Legs . | . . . . . . . . . . . Wheels 59 | 1 58 . . . . . . . . . Hover 2 | . . . . . . . 2 . . . Flight 2826 | . 23 343 297 285 581 486 81 65 454 211 Fastest Speed 25 | 90 37 37 37 34 29 29 28 25 27 27 Average Speed 36 | 90 74 37 38 35 38 29 30 26 27 43 Slowest Speed 178 | 90 90 37 40 40 100 29 120 28 34 178 Overloaded Moves 28 | . . . . . . . . 28 . . Propulsion Burnouts . | . . . . . . . . . . . Robots Hopped 30 | . 4 1 2 2 8 4 . . 1 8 Cave-ins Triggered . | . . . . . . . . . . . Exploration Rate (%) 31 | 2 27 81 37 35 26 19 4 80 16 18 Regions Visited 10 Branch Regions 1 Pre-discovered Areas . | . . . . . . . . . . . Known Exits Taken 4 | . . 1 . . . 1 1 . 1 . Unknown Exits Taken 5 | 1 1 . 1 1 1 . . . . . Scrap Searched 1 | . . 1 . . . . . . . . Spaces Dug 3 | . . . . . . 2 . . 1 . Terrain Destroyed 3 | . . . . . . 2 . . 1 . Melee 3 | . . . . . . 2 . . 1 . Projectile . | . . . . . . . . . . . AOE . | . . . . . . . . . . . Terrain Rammed . | . . . . . . . . . . . Walls Destroyed . | . . . . . . . . . . . Machines Disabled . | . . . . . . . . . . . Actions | -11 -10 -10 -9 -8 -7 -6 -5 -5 -4 -3 --------- Run | Scr Mat Min Mat Mat Fac Fac Fac DSF Fac Res Total 3508 | 2 84 344 300 317 783 526 89 68 488 507 Wait 136 | . 2 . . 28 1 23 . . 14 68 Move 3228 | . 74 340 292 280 753 478 82 64 451 414 Hop 27 | . 2 1 2 2 7 4 . . 1 8 Pick Up 12 | . 2 . 2 . 2 4 1 . 1 . Fast Attach 46 | . 1 3 2 5 12 9 2 . 5 7 Attach 6 | . . . . . 1 1 1 . . 3 Detach 4 | . . . . . 1 . 1 . . 2 Swap 6 | 2 2 . . 1 . . . . 1 . Drop 21 | . 1 . 2 1 6 4 2 . 4 1 Fire . | . . . . . . . . . . . Melee 7 | . . . . . . 2 . 4 1 . Ram 5 | . . . . . . 1 . . . 4 Kick . | . . . . . . . . . . . Crush . | . . . . . . . . . . . Escape Stasis 10 | . . . . . . . . . 10 . Rewire . | . . . . . . . . . . . Trap . | . . . . . . . . . . . Miscellaneous . | . . . . . . . . . . . Route ------- -11/Scrapyard -10/Materials -10/Mines (discovered 2 exits: *Mat x2) -9/Materials -8/Materials -7/Factory -6/Factory -5/Factory -5/DSF -4/Factory (discovered 4 exits: *Res x4) -3/Research (discovered 1 exit: [*Res]) History --------- Turn | Location | Event 4 | -11/Scrapyard | Discovered new exit (range 0) 4 | -11/Scrapyard | Entered Materials 69 | -10/Materials | Discovered new exit (range 12) 74 | -10/Materials | Entered Mines 85 | -10/Mines | Received a Rocket Launcher from a helpful Derelict 94 | -10/Mines | Lost 3 parts (1p1u1w) 127 | -10/Mines | Met a Derelict bent on vengeance 203 | -10/Mines | Identified exit to Materials 203 | -10/Mines | Discovered exit to Materials (range 7) 206 | -10/Mines | Entered Materials 206 | -9/Materials | Evolved 2 slots: Propulsion x1, Utility x1 297 | -9/Materials | Discovered new exit (range 13) 305 | -9/Materials | Build established: Mutant 309 | -9/Materials | Lost 3 parts (1n2w) 324 | -9/Materials | Entered another Materials area 324 | -8/Materials | Evolved 2 slots: Utility x2 438 | -8/Materials | Discovered new exit (range 18) 463 | -8/Materials | Entered Factory 463 | -7/Factory | Accompanied by 1 ally 463 | -7/Factory | Evolved 2 slots: Utility x2 713 | -7/Factory | Core integrity fell below 50% 717 | -7/Factory | Lost 5 parts (3n2u) 775 | -7/Factory | Discovered new exit (range 8) 782 | -7/Factory | Entered another Factory area 782 | -6/Factory | Evolved 2 slots: Utility x2 949 | -6/Factory | Spotted B-75 Beast 968 | -6/Factory | Discovered new exit (range 10) 970 | -6/Factory | Identified exit to Factory 974 | -6/Factory | Entered another Factory area 974 | -5/Factory | Evolved 2 slots: Propulsion x1, Utility x1 1006 | -5/Factory | Identified exit to DSF 1006 | -5/Factory | Entered DSF 1030 | -5/DSF | Discovered new exit (range 21) 1035 | -5/DSF | Identified exit to Factory 1036 | -5/DSF | Entered Factory 1036 | -4/Factory | Evolved 2 slots: Utility x2 1050 | -4/Factory | Build established: Sprinter 1058 | -4/Factory | Identified exit to Research 1091 | -4/Factory | Spotted B-86 Titan 1199 | -4/Factory | Entered Research 1199 | -3/Research | Evolved 2 slots: Propulsion x1, Utility x1 1395 | -3/Research | Lost 12 parts (4n7u1w) 1426 | -3/Research | System corruption reached 10% 1438 | -3/Research | Core integrity fell below 50% 1458 | -3/Research | Core integrity fell below 20% 1468 | -3/Research | Discovered new exit (range 21) 1471 | -3/Research | Destroyed by Y-72 Warden with Railgun Last Messages --------------- 01450_ Slammed into S-43 Plague. 01450_ Destabilizing: Core damaged (-52). 01451_ Slammed into S-43 Plague. 01452_ Adv. Medium Treads destroyed. 01452_ K-01 Serf cleans the Scanalyzer. 01452_ Scanalyzer disabled. 01454_ W-44 Eye sends out distress signal. 01455_ P-80 Master resets S-43 Plague, system corruption cleaned. 01457_ Slammed into A-15 Conveyor. 01458_ Penetrated by Slug. 01458_ System Shield destroyed. 01462_ Slammed into A-15 Conveyor. 01462_ Imp. Signal Interpreter destroyed. 01462_ System corrupted by crushing effect (+2). 01465_ Penetrated by Slug. 01465_ Slug penetrates Terminal. 01465_ Terminal disabled. 01468_ EXIT=FOUND 01470_ K-01 Serf collects debris. 01471_ Penetrated by Slug. Map ----- +----------------------------------------------------+ | ?????????????????????????????????????????????????? | | ?????????????????????????????????????????????????? | | ?????????????????????????????????????????????????? | | ?????????????????????????????????????????????????? | | ?????????????????????????????????????????????????? | | ?????????????????????????????????????????????????? | | ?????????????????????????????????????????????????? | | ?????????????????????????????????????????????????? | | ?????????????????????######??????????????????????? | | ?????????????????????#! ??????????????????????? | | ??????????????????????u ??????????????????????? | | ??????????????????????